[Event "Titled Tuesday Blitz April 18 Early 2023"]
[White "Maung, Maung Kyaw Zaw Hein"]
[Black "Bacallao Alonso, Yusnel"]
[WhiteFideId "13001698"]
[BlackFideId "3507416"]
[WhiteElo "2019"]
[BlackElo "2561"]
[Result "0-1"]
[Round "04"]
[TimeControl "180+2"]
[Date "2023.04.18"]
[WhiteClock "0:00:08"]
[BlackClock "0:00:38"]

1. Nf3 {[%clk 0:03:00]}  d5 {[%clk 0:02:59]} 2. d4 {[%clk 0:03:00]}  e6 {[%clk 0:02:59]} 3. c4 {[%clk 0:03:00]}  a6 {[%clk 0:02:59]} 4. c5 {[%clk 0:02:55]}  b6 {[%clk 0:02:58]} 5. cxb6 {[%clk 0:02:55]}  c5 {[%clk 0:02:59]} 6. e3 {[%clk 0:02:34]}  Qxb6 {[%clk 0:02:54]} 7. dxc5 {[%clk 0:02:25]}  Bxc5 {[%clk 0:02:52]} 8. Nc3 {[%clk 0:02:25]}  Nf6 {[%clk 0:02:45]} 9. Na4 {[%clk 0:02:23]}  Bb4+ {[%clk 0:02:45]} 10. Bd2 {[%clk 0:02:23]}  Qa5 {[%clk 0:02:44]} 11. Bd3 {[%clk 0:02:17]}  Bxd2+ {[%clk 0:02:40]} 12. Nxd2 {[%clk 0:02:16]}  Bd7 {[%clk 0:02:40]} 13. Nc3 {[%clk 0:02:11]}  Nc6 {[%clk 0:02:38]} 14. a3 {[%clk 0:02:10]}  O-O {[%clk 0:02:35]} 15. O-O {[%clk 0:02:09]}  Rfc8 {[%clk 0:02:33]} 16. b4 {[%clk 0:02:04]}  Qd8 {[%clk 0:02:32]} 17. Na4 {[%clk 0:02:01]}  Ne5 {[%clk 0:02:32]} 18. Be2 {[%clk 0:01:58]}  a5 {[%clk 0:02:08]} 19. Nc5 {[%clk 0:01:54]}  axb4 {[%clk 0:02:08]} 20. axb4 {[%clk 0:01:54]}  Rab8 {[%clk 0:02:08]} 21. Rb1 {[%clk 0:01:31]}  Be8 {[%clk 0:02:04]} 22. Ba6 {[%clk 0:01:22]}  Rc6 {[%clk 0:01:57]} 23. Qc2 {[%clk 0:00:54]}  Ned7 {[%clk 0:01:34]} 24. Bd3 {[%clk 0:00:42]}  Qc7 {[%clk 0:01:04]} 25. Rfc1 {[%clk 0:00:16]}  e5 {[%clk 0:01:04]} 26. Bf5 {[%clk 0:00:13]}  g6 {[%clk 0:01:02]} 27. Bxd7 {[%clk 0:00:13]}  Nxd7 {[%clk 0:01:03]} 28. h3 {[%clk 0:00:12]}  Qd6 {[%clk 0:00:41]} 29. Qa4 {[%clk 0:00:10]}  Nxc5 {[%clk 0:00:38]} 30. bxc5 {[%clk 0:00:08]}  Rxc5 {[%clk 0:00:38]} 0-1


[Site "https://www.chess.com"]

[Event "Titled Tuesday Blitz April 18 Early 2023"]
[White "Kucuksari, Kaan"]
[Black "Svane, Rasmus"]
[WhiteFideId "6380166"]
[BlackFideId "4657101"]
[WhiteElo "2364"]
[BlackElo "2597"]
[Result "1-0"]
[Round "04"]
[TimeControl "180+2"]
[Date "2023.04.18"]
[WhiteClock "0:00:58"]
[BlackClock "0:00:02"]

1. d4 {[%clk 0:03:00]}  Nf6 {[%clk 0:03:00]} 2. c4 {[%clk 0:03:01]}  e6 {[%clk 0:03:00]} 3. g3 {[%clk 0:03:01]}  d5 {[%clk 0:03:00]} 4. Nf3 {[%clk 0:03:02]}  dxc4 {[%clk 0:02:44]} 5. Bg2 {[%clk 0:03:02]}  Bb4+ {[%clk 0:02:45]} 6. Bd2 {[%clk 0:03:01]}  a5 {[%clk 0:02:45]} 7. Qc2 {[%clk 0:03:00]}  b6 {[%clk 0:02:43]} 8. Qxc4 {[%clk 0:02:58]}  Ba6 {[%clk 0:02:37]} 9. Qc2 {[%clk 0:02:56]}  c5 {[%clk 0:02:34]} 10. Nc3 {[%clk 0:02:27]}  cxd4 {[%clk 0:02:27]} 11. Nxd4 {[%clk 0:02:28]}  Ra7 {[%clk 0:02:26]} 12. Nc6 {[%clk 0:02:20]}  Nxc6 {[%clk 0:02:26]} 13. Bxc6+ {[%clk 0:02:20]}  Ke7 {[%clk 0:02:27]} 14. O-O {[%clk 0:02:17]}  Rc7 {[%clk 0:02:27]} 15. Bf3 {[%clk 0:02:16]}  Qc8 {[%clk 0:01:56]} 16. Bf4 {[%clk 0:02:14]}  Rc4 {[%clk 0:01:54]} 17. Rfd1 {[%clk 0:02:03]}  Rd8 {[%clk 0:01:45]} 18. Rxd8 {[%clk 0:02:02]}  Qxd8 {[%clk 0:01:45]} 19. Rd1 {[%clk 0:02:03]}  Qc8 {[%clk 0:01:42]} 20. a3 {[%clk 0:01:51]}  Bxc3 {[%clk 0:01:22]} 21. bxc3 {[%clk 0:01:52]}  Kf8 {[%clk 0:01:08]} 22. Rd6 {[%clk 0:01:27]}  Rxc3 {[%clk 0:00:39]} 23. Qd2 {[%clk 0:01:25]}  Ke7 {[%clk 0:00:06]} 24. Rxb6 {[%clk 0:01:25]}  Ne8 {[%clk 0:00:04]} 25. Rb8 {[%clk 0:01:01]}  Qc5 {[%clk 0:00:02]} 26. Qd8+ {[%clk 0:00:58]} 1-0


[Site "https://www.chess.com"]

[Event "Titled Tuesday Blitz April 18 Early 2023"]
[White "Terry, Renato"]
[Black "Bodnaruk, Anastasia"]
[WhiteFideId "3803457"]
[BlackFideId "4181751"]
[WhiteElo "2575"]
[BlackElo "2310"]
[Result "1-0"]
[Round "04"]
[TimeControl "180+2"]
[Date "2023.04.18"]
[WhiteClock "0:00:28"]
[BlackClock "0:00:02"]

1. e4 {[%clk 0:03:00]}  c5 {[%clk 0:02:59]} 2. Nf3 {[%clk 0:03:01]}  d6 {[%clk 0:03:00]} 3. Bb5+ {[%clk 0:03:00]}  Nd7 {[%clk 0:02:59]} 4. d4 {[%clk 0:03:00]}  cxd4 {[%clk 0:02:59]} 5. Qxd4 {[%clk 0:03:00]}  a6 {[%clk 0:02:58]} 6. Bxd7+ {[%clk 0:03:01]}  Bxd7 {[%clk 0:02:58]} 7. Bg5 {[%clk 0:03:02]}  Nf6 {[%clk 0:02:34]} 8. Nc3 {[%clk 0:03:01]}  e5 {[%clk 0:02:11]} 9. Qd3 {[%clk 0:02:59]}  Be6 {[%clk 0:02:10]} 10. O-O-O {[%clk 0:02:51]}  Rc8 {[%clk 0:02:10]} 11. Kb1 {[%clk 0:02:50]}  h6 {[%clk 0:02:00]} 12. Bxf6 {[%clk 0:02:50]}  Qxf6 {[%clk 0:01:58]} 13. Nd5 {[%clk 0:02:50]}  Qd8 {[%clk 0:01:54]} 14. Rd2 {[%clk 0:02:02]}  Rc5 {[%clk 0:01:40]} 15. b4 {[%clk 0:01:59]}  Rc6 {[%clk 0:01:33]} 16. Rhd1 {[%clk 0:01:57]}  Qc8 {[%clk 0:01:21]} 17. a3 {[%clk 0:01:44]}  Bxd5 {[%clk 0:01:04]} 18. Qxd5 {[%clk 0:01:39]}  Be7 {[%clk 0:01:04]} 19. Rc1 {[%clk 0:01:31]}  b5 {[%clk 0:01:01]} 20. c4 {[%clk 0:01:30]}  Rxc4 {[%clk 0:00:51]} 21. Rxc4 {[%clk 0:01:30]}  bxc4 {[%clk 0:00:51]} 22. Rc2 {[%clk 0:01:30]}  O-O {[%clk 0:00:51]} 23. Rxc4 {[%clk 0:01:29]}  Qg4 {[%clk 0:00:52]} 24. Qd3 {[%clk 0:00:51]}  Qxg2 {[%clk 0:00:47]} 25. Rc2 {[%clk 0:00:51]}  Rb8 {[%clk 0:00:36]} 26. Ka2 {[%clk 0:00:50]}  Qg6 {[%clk 0:00:34]} 27. Nd2 {[%clk 0:00:48]}  Qe6+ {[%clk 0:00:31]} 28. Ka1 {[%clk 0:00:48]}  Rd8 {[%clk 0:00:28]} 29. Qxa6 {[%clk 0:00:47]}  d5 {[%clk 0:00:22]} 30. Qxe6 {[%clk 0:00:47]}  fxe6 {[%clk 0:00:22]} 31. Kb2 {[%clk 0:00:44]}  Bg5 {[%clk 0:00:20]} 32. b5 {[%clk 0:00:38]}  d4 {[%clk 0:00:09]} 33. Kb3 {[%clk 0:00:38]}  d3 {[%clk 0:00:09]} 34. Rb2 {[%clk 0:00:38]}  Rf8 {[%clk 0:00:08]} 35. b6 {[%clk 0:00:29]}  Rb8 {[%clk 0:00:06]} 36. Nc4 {[%clk 0:00:29]}  d2 {[%clk 0:00:06]} 37. Kc2 {[%clk 0:00:29]}  Rc8 {[%clk 0:00:05]} 38. Rb4 {[%clk 0:00:28]}  Be7 {[%clk 0:00:02]} 39. b7 {[%clk 0:00:29]}  Rb8 {[%clk 0:00:02]} 40. Rb5 {[%clk 0:00:29]}  g5 {[%clk 0:00:02]} 41. Kxd2 {[%clk 0:00:27]}  Kg7 {[%clk 0:00:02]} 42. Nxe5 {[%clk 0:00:27]}  Bd6 {[%clk 0:00:02]} 43. Nc6 {[%clk 0:00:28]}  Re8 {[%clk 0:00:02]} 44. b8=Q {[%clk 0:00:27]}  Bxb8 {[%clk 0:00:02]} 45. Rxb8 {[%clk 0:00:28]} 1-0


[Site "https://www.chess.com"]

[Event "Titled Tuesday Blitz April 18 Early 2023"]
[White "Tasev, Dejan"]
[Black "Ibarra Jerez, Jose Carlos"]
[WhiteFideId "936618"]
[BlackFideId "2226332"]
[WhiteElo "2244"]
[BlackElo "2638"]
[Result "0-1"]
[Round "04"]
[TimeControl "180+2"]
[Date "2023.04.18"]
[WhiteClock "0:00:04"]
[BlackClock "0:01:08"]

1. e4 {[%clk 0:03:00]}  c5 {[%clk 0:03:00]} 2. Nf3 {[%clk 0:03:00]}  e6 {[%clk 0:03:00]} 3. Nc3 {[%clk 0:03:00]}  a6 {[%clk 0:03:00]} 4. g3 {[%clk 0:03:01]}  b5 {[%clk 0:03:00]} 5. Bg2 {[%clk 0:03:01]}  Bb7 {[%clk 0:03:00]} 6. d3 {[%clk 0:03:01]}  Nf6 {[%clk 0:02:59]} 7. a4 {[%clk 0:03:01]}  b4 {[%clk 0:02:59]} 8. Nb1 {[%clk 0:03:02]}  d5 {[%clk 0:02:59]} 9. exd5 {[%clk 0:03:02]}  Nxd5 {[%clk 0:02:58]} 10. O-O {[%clk 0:03:01]}  Be7 {[%clk 0:02:58]} 11. Nbd2 {[%clk 0:03:00]}  O-O {[%clk 0:02:59]} 12. Nc4 {[%clk 0:03:00]}  Nc6 {[%clk 0:03:00]} 13. Re1 {[%clk 0:02:59]}  Bf6 {[%clk 0:03:00]} 14. Nfe5 {[%clk 0:02:43]}  Nxe5 {[%clk 0:02:58]} 15. Nxe5 {[%clk 0:02:41]}  Qc7 {[%clk 0:02:59]} 16. f4 {[%clk 0:02:30]}  g6 {[%clk 0:02:58]} 17. b3 {[%clk 0:02:25]}  Nc3 {[%clk 0:02:57]} 18. Qd2 {[%clk 0:02:22]}  Nd5 {[%clk 0:02:39]} 19. Bb2 {[%clk 0:02:19]}  Bg7 {[%clk 0:02:40]} 20. Qf2 {[%clk 0:02:17]}  Rfd8 {[%clk 0:02:39]} 21. Re2 {[%clk 0:02:14]}  Rac8 {[%clk 0:02:38]} 22. Rae1 {[%clk 0:02:14]}  Ne7 {[%clk 0:02:35]} 23. Nc4 {[%clk 0:01:54]}  Bxb2 {[%clk 0:02:27]} 24. Nxb2 {[%clk 0:01:54]}  Nf5 {[%clk 0:02:27]} 25. Nc4 {[%clk 0:01:50]}  Nd4 {[%clk 0:02:26]} 26. Re5 {[%clk 0:01:46]}  Bxg2 {[%clk 0:02:24]} 27. Qxg2 {[%clk 0:01:45]}  Rd5 {[%clk 0:02:24]} 28. Rf1 {[%clk 0:01:10]}  Rcd8 {[%clk 0:02:23]} 29. h4 {[%clk 0:01:08]}  h5 {[%clk 0:02:21]} 30. g4 {[%clk 0:01:00]}  hxg4 {[%clk 0:02:16]} 31. Qxg4 {[%clk 0:01:00]}  Kg7 {[%clk 0:02:12]} 32. h5 {[%clk 0:00:58]}  Rh8 {[%clk 0:02:07]} 33. hxg6 {[%clk 0:00:47]}  f6 {[%clk 0:01:34]} 34. Rxd5 {[%clk 0:00:33]}  exd5 {[%clk 0:01:35]} 35. Ne3 {[%clk 0:00:30]}  Rh6 {[%clk 0:01:35]} 36. Nf5+ {[%clk 0:00:17]}  Nxf5 {[%clk 0:01:35]} 37. Qxf5 {[%clk 0:00:18]}  Qe7 {[%clk 0:01:35]} 38. Kf2 {[%clk 0:00:11]}  Rh2+ {[%clk 0:01:30]} 39. Kg3 {[%clk 0:00:10]}  Rxc2 {[%clk 0:01:12]} 40. Rf3 {[%clk 0:00:03]}  Qe1+ {[%clk 0:01:10]} 41. Kg4 {[%clk 0:00:04]}  Rg2+ {[%clk 0:01:08]} 42. Rg3 {[%clk 0:00:04]}  Qxg3+ {[%clk 0:01:08]} 0-1


[Site "https://www.chess.com"]

[Event "Titled Tuesday Blitz April 18 Early 2023"]
[White "Hirneise, Jens"]
[Black "Lenderman, Aleksandr"]
[WhiteFideId "24614734"]
[BlackFideId "2021285"]
[WhiteElo "2345"]
[BlackElo "2607"]
[Result "0-1"]
[Round "04"]
[TimeControl "180+2"]
[Date "2023.04.18"]
[WhiteClock "0:00:11"]
[BlackClock "0:01:09"]

1. d4 {[%clk 0:03:00]}  g6 {[%clk 0:03:00]} 2. Bf4 {[%clk 0:02:59]}  Bg7 {[%clk 0:03:01]} 3. c3 {[%clk 0:02:59]}  d6 {[%clk 0:02:59]} 4. Nf3 {[%clk 0:02:59]}  Nc6 {[%clk 0:02:57]} 5. d5 {[%clk 0:02:54]}  Nb8 {[%clk 0:02:57]} 6. e3 {[%clk 0:02:55]}  Nf6 {[%clk 0:02:57]} 7. Be2 {[%clk 0:02:52]}  O-O {[%clk 0:02:57]} 8. O-O {[%clk 0:02:52]}  c6 {[%clk 0:02:56]} 9. dxc6 {[%clk 0:02:51]}  Nxc6 {[%clk 0:02:57]} 10. Bg3 {[%clk 0:02:49]}  Qb6 {[%clk 0:02:55]} 11. Qb3 {[%clk 0:02:48]}  Be6 {[%clk 0:02:54]} 12. Qa3 {[%clk 0:02:44]}  Ne4 {[%clk 0:02:54]} 13. Nbd2 {[%clk 0:02:43]}  Nxg3 {[%clk 0:02:52]} 14. hxg3 {[%clk 0:02:42]}  Rfc8 {[%clk 0:02:50]} 15. Nd4 {[%clk 0:02:36]}  Bd7 {[%clk 0:02:50]} 16. Nc4 {[%clk 0:02:28]}  Qd8 {[%clk 0:02:50]} 17. Rad1 {[%clk 0:02:18]}  a6 {[%clk 0:02:46]} 18. Nxc6 {[%clk 0:02:11]}  Rxc6 {[%clk 0:02:43]} 19. Na5 {[%clk 0:02:04]}  Rc7 {[%clk 0:02:43]} 20. Bf3 {[%clk 0:02:04]}  Rb8 {[%clk 0:02:41]} 21. Nb3 {[%clk 0:01:58]}  Qc8 {[%clk 0:02:31]} 22. Qa5 {[%clk 0:01:48]}  Rc4 {[%clk 0:02:25]} 23. Bd5 {[%clk 0:01:43]}  Ra4 {[%clk 0:02:22]} 24. Qb6 {[%clk 0:01:40]}  Bc6 {[%clk 0:02:11]} 25. a3 {[%clk 0:01:34]}  Bxd5 {[%clk 0:02:11]} 26. Rxd5 {[%clk 0:01:33]}  Qc6 {[%clk 0:02:11]} 27. Qa7 {[%clk 0:01:22]}  Qxd5 {[%clk 0:02:07]} 28. Qxb8+ {[%clk 0:01:22]}  Bf8 {[%clk 0:02:08]} 29. Nd4 {[%clk 0:01:19]}  e5 {[%clk 0:02:08]} 30. Nf3 {[%clk 0:01:17]}  Qb5 {[%clk 0:02:07]} 31. Rd1 {[%clk 0:01:12]}  Kg7 {[%clk 0:02:01]} 32. Rd2 {[%clk 0:00:52]}  h6 {[%clk 0:01:59]} 33. Ne1 {[%clk 0:00:43]}  Rc4 {[%clk 0:01:50]} 34. Nd3 {[%clk 0:00:41]}  a5 {[%clk 0:01:48]} 35. Nc1 {[%clk 0:00:37]}  h5 {[%clk 0:01:43]} 36. Ne2 {[%clk 0:00:36]}  h4 {[%clk 0:01:41]} 37. gxh4 {[%clk 0:00:36]}  Rxh4 {[%clk 0:01:42]} 38. Ng3 {[%clk 0:00:37]}  a4 {[%clk 0:01:35]} 39. Qd8 {[%clk 0:00:37]}  Rg4 {[%clk 0:01:33]} 40. Qc8 {[%clk 0:00:30]}  Rc4 {[%clk 0:01:31]} 41. Qd8 {[%clk 0:00:28]}  Rg4 {[%clk 0:01:24]} 42. Qc8 {[%clk 0:00:28]}  Rg5 {[%clk 0:01:20]} 43. Ne4 {[%clk 0:00:23]}  Rf5 {[%clk 0:01:16]} 44. Nxd6 {[%clk 0:00:24]}  Bxd6 {[%clk 0:01:16]} 45. Rxd6 {[%clk 0:00:25]}  Qxb2 {[%clk 0:01:15]} 46. f3 {[%clk 0:00:18]}  Qc1+ {[%clk 0:01:09]} 47. Kf2 {[%clk 0:00:18]}  Qc2+ {[%clk 0:01:09]} 48. Kf1 {[%clk 0:00:18]}  Rh5 {[%clk 0:01:09]} 49. Kg1 {[%clk 0:00:10]}  Qc1+ {[%clk 0:01:09]} 50. Kf2 {[%clk 0:00:11]}  Rh1 {[%clk 0:01:09]} 0-1


[Site "https://www.chess.com"]

[Event "Titled Tuesday Blitz April 18 Early 2023"]
[White "Gupta, Abhijeet"]
[Black "Lenaerts, Lennert"]
[WhiteFideId "5010608"]
[BlackFideId "211435"]
[WhiteElo "2528"]
[BlackElo "2334"]
[Result "1-0"]
[Round "04"]
[TimeControl "180+2"]
[Date "2023.04.18"]
[WhiteClock "0:01:35"]
[BlackClock "0:02:25"]

1. d4 {[%clk 0:03:00]}  d5 {[%clk 0:02:59]} 2. Nf3 {[%clk 0:03:00]}  Nf6 {[%clk 0:02:59]} 3. Bf4 {[%clk 0:03:00]}  c5 {[%clk 0:02:59]} 4. e3 {[%clk 0:03:00]}  e6 {[%clk 0:02:57]} 5. Nbd2 {[%clk 0:02:55]}  Nc6 {[%clk 0:02:57]} 6. c3 {[%clk 0:02:53]}  Bd6 {[%clk 0:02:58]} 7. Bg3 {[%clk 0:02:53]}  O-O {[%clk 0:02:56]} 8. Bd3 {[%clk 0:02:53]}  b6 {[%clk 0:02:56]} 9. e4 {[%clk 0:02:50]}  Be7 {[%clk 0:02:57]} 10. e5 {[%clk 0:02:50]}  Nh5 {[%clk 0:02:57]} 11. Ng5 {[%clk 0:02:22]}  Bxg5 {[%clk 0:02:55]} 12. Qxh5 {[%clk 0:02:22]}  g6 {[%clk 0:02:56]} 13. Qe2 {[%clk 0:02:17]}  cxd4 {[%clk 0:02:56]} 14. h4 {[%clk 0:02:14]}  Bh6 {[%clk 0:02:57]} 15. h5 {[%clk 0:02:13]}  g5 {[%clk 0:02:57]} 16. Nf3 {[%clk 0:02:10]}  dxc3 {[%clk 0:02:57]} 17. bxc3 {[%clk 0:02:07]}  Bd7 {[%clk 0:02:54]} 18. O-O {[%clk 0:02:03]}  f5 {[%clk 0:02:54]} 19. exf6 {[%clk 0:02:01]}  Qxf6 {[%clk 0:02:55]} 20. Rae1 {[%clk 0:01:46]}  Bg7 {[%clk 0:02:52]} 21. Bb5 {[%clk 0:01:43]}  Rfe8 {[%clk 0:02:47]} 22. Bxc6 {[%clk 0:01:41]}  Bxc6 {[%clk 0:02:46]} 23. Be5 {[%clk 0:01:42]}  Qf5 {[%clk 0:02:41]} 24. Bxg7 {[%clk 0:01:42]}  Kxg7 {[%clk 0:02:42]} 25. Nd4 {[%clk 0:01:39]}  Qf6 {[%clk 0:02:36]} 26. Nxc6 {[%clk 0:01:39]}  e5 {[%clk 0:02:35]} 27. Nxe5 {[%clk 0:01:37]}  Re6 {[%clk 0:02:35]} 28. f4 {[%clk 0:01:37]}  gxf4 {[%clk 0:02:30]} 29. Qg4+ {[%clk 0:01:36]}  Kf8 {[%clk 0:02:25]} 30. Rxf4 {[%clk 0:01:35]} 1-0


[Site "https://www.chess.com"]

[Event "Titled Tuesday Blitz April 18 Early 2023"]
[White "Indjic, Aleksandar"]
[Black "MKlose11"]
[WhiteFideId "911925"]
[WhiteElo "2614"]
[BlackElo "2581"]
[Result "1/2-1/2"]
[Round "04"]
[TimeControl "180+2"]
[Date "2023.04.18"]
[WhiteClock "0:00:16"]
[BlackClock "0:00:09"]

1. Nf3 {[%clk 0:03:00]}  Nf6 {[%clk 0:02:58]} 2. c4 {[%clk 0:03:00]}  c5 {[%clk 0:02:58]} 3. g3 {[%clk 0:02:59]}  Nc6 {[%clk 0:02:57]} 4. Bg2 {[%clk 0:02:59]}  d6 {[%clk 0:02:57]} 5. O-O {[%clk 0:02:59]}  g6 {[%clk 0:02:57]} 6. b3 {[%clk 0:02:58]}  Bg7 {[%clk 0:02:56]} 7. Bb2 {[%clk 0:02:58]}  Bd7 {[%clk 0:02:57]} 8. d4 {[%clk 0:02:58]}  cxd4 {[%clk 0:02:57]} 9. Nxd4 {[%clk 0:02:59]}  O-O {[%clk 0:02:56]} 10. Nc3 {[%clk 0:02:58]}  Qa5 {[%clk 0:02:56]} 11. Nd5 {[%clk 0:02:54]}  Nxd5 {[%clk 0:02:52]} 12. cxd5 {[%clk 0:02:54]}  Nxd4 {[%clk 0:02:44]} 13. Bxd4 {[%clk 0:02:55]}  Rfc8 {[%clk 0:02:29]} 14. Bxg7 {[%clk 0:02:54]}  Kxg7 {[%clk 0:02:28]} 15. Qd4+ {[%clk 0:02:55]}  f6 {[%clk 0:02:27]} 16. Qe3 {[%clk 0:02:52]}  Kf8 {[%clk 0:02:20]} 17. Rfc1 {[%clk 0:02:50]}  Qb6 {[%clk 0:02:07]} 18. Qh6+ {[%clk 0:02:41]}  Kg8 {[%clk 0:02:07]} 19. Qd2 {[%clk 0:02:36]}  Kf7 {[%clk 0:01:58]} 20. h4 {[%clk 0:02:35]}  Rxc1+ {[%clk 0:01:45]} 21. Rxc1 {[%clk 0:02:34]}  Rc8 {[%clk 0:01:46]} 22. Bf3 {[%clk 0:02:27]}  Rxc1+ {[%clk 0:01:43]} 23. Qxc1 {[%clk 0:02:28]}  Kg7 {[%clk 0:01:36]} 24. Qc3 {[%clk 0:02:23]}  Qc5 {[%clk 0:01:31]} 25. Qxc5 {[%clk 0:02:23]}  dxc5 {[%clk 0:01:32]} 26. e4 {[%clk 0:02:23]}  b6 {[%clk 0:01:29]} 27. Be2 {[%clk 0:02:22]}  g5 {[%clk 0:01:25]} 28. f4 {[%clk 0:02:22]}  gxf4 {[%clk 0:01:21]} 29. gxf4 {[%clk 0:02:23]}  e5 {[%clk 0:01:16]} 30. dxe6 {[%clk 0:02:14]}  Bxe6 {[%clk 0:01:16]} 31. Kf2 {[%clk 0:02:11]}  Kf8 {[%clk 0:01:13]} 32. Ke3 {[%clk 0:02:07]}  Ke7 {[%clk 0:01:13]} 33. Bc4 {[%clk 0:02:06]}  Bg4 {[%clk 0:01:08]} 34. e5 {[%clk 0:01:59]}  fxe5 {[%clk 0:01:04]} 35. fxe5 {[%clk 0:02:00]}  Bf5 {[%clk 0:01:03]} 36. a4 {[%clk 0:01:54]}  h6 {[%clk 0:01:00]} 37. Bd5 {[%clk 0:01:50]}  a6 {[%clk 0:00:56]} 38. Bc4 {[%clk 0:01:48]}  Be6 {[%clk 0:00:52]} 39. Ke4 {[%clk 0:01:40]}  b5 {[%clk 0:00:50]} 40. axb5 {[%clk 0:00:46]}  axb5 {[%clk 0:00:49]} 41. Bxb5 {[%clk 0:00:43]}  Bxb3 {[%clk 0:00:48]} 42. Be2 {[%clk 0:00:43]}  Be6 {[%clk 0:00:43]} 43. Bd1 {[%clk 0:00:43]}  Ba2 {[%clk 0:00:43]} 44. Kf5 {[%clk 0:00:35]}  Bb1+ {[%clk 0:00:41]} 45. Kf4 {[%clk 0:00:34]}  c4 {[%clk 0:00:35]} 46. Ke3 {[%clk 0:00:34]}  c3 {[%clk 0:00:31]} 47. Bb3 {[%clk 0:00:31]}  Bf5 {[%clk 0:00:28]} 48. Ke2 {[%clk 0:00:31]}  Kd7 {[%clk 0:00:27]} 49. Ke3 {[%clk 0:00:28]}  Kc6 {[%clk 0:00:24]} 50. Ke2 {[%clk 0:00:21]}  Kc5 {[%clk 0:00:24]} 51. Kd1 {[%clk 0:00:20]}  Kb4 {[%clk 0:00:19]} 52. Ba2 {[%clk 0:00:18]}  Kc5 {[%clk 0:00:18]} 53. Bb3 {[%clk 0:00:17]}  Bg6 {[%clk 0:00:10]} 54. Bc2 {[%clk 0:00:12]}  Bh5+ {[%clk 0:00:07]} 55. Kc1 {[%clk 0:00:11]}  Kd5 {[%clk 0:00:08]} 56. Bd3 {[%clk 0:00:09]}  Kxe5 {[%clk 0:00:05]} 57. Kc2 {[%clk 0:00:10]}  Kf4 {[%clk 0:00:06]} 58. Kxc3 {[%clk 0:00:10]}  Kg3 {[%clk 0:00:06]} 59. Kd4 {[%clk 0:00:11]}  Kxh4 {[%clk 0:00:07]} 60. Ke3 {[%clk 0:00:11]}  Kg3 {[%clk 0:00:07]} 61. Be4 {[%clk 0:00:10]}  Bf7 {[%clk 0:00:04]} 62. Bf3 {[%clk 0:00:10]}  Be6 {[%clk 0:00:03]} 63. Be2 {[%clk 0:00:11]}  Bg4 {[%clk 0:00:02]} 64. Bxg4 {[%clk 0:00:11]}  Kxg4 {[%clk 0:00:03]} 65. Kf2 {[%clk 0:00:11]}  h5 {[%clk 0:00:04]} 66. Kg1 {[%clk 0:00:12]}  Kh3 {[%clk 0:00:05]} 67. Kh1 {[%clk 0:00:13]}  Kg3 {[%clk 0:00:06]} 68. Kg1 {[%clk 0:00:13]}  h4 {[%clk 0:00:07]} 69. Kh1 {[%clk 0:00:14]}  h3 {[%clk 0:00:07]} 70. Kg1 {[%clk 0:00:15]}  h2+ {[%clk 0:00:08]} 71. Kh1 {[%clk 0:00:16]}  Kh3 {[%clk 0:00:09]} 1/2-1/2


[Site "https://www.chess.com"]

[Event "Titled Tuesday Blitz April 18 Early 2023"]
[White "Yeletsky, Ivan"]
[Black "Ezat, Mohamed"]
[WhiteFideId "24180327"]
[BlackFideId "10600906"]
[WhiteElo "2422"]
[BlackElo "2386"]
[Result "1-0"]
[Round "04"]
[TimeControl "180+2"]
[Date "2023.04.18"]
[WhiteClock "0:01:44"]
[BlackClock "0:01:23"]

1. Nf3 {[%clk 0:03:00]}  Nf6 {[%clk 0:02:59]} 2. g3 {[%clk 0:03:00]}  g6 {[%clk 0:03:00]} 3. b4 {[%clk 0:02:59]}  Bg7 {[%clk 0:03:00]} 4. Bb2 {[%clk 0:02:59]}  O-O {[%clk 0:03:01]} 5. c4 {[%clk 0:02:59]}  d6 {[%clk 0:03:01]} 6. d4 {[%clk 0:02:59]}  e5 {[%clk 0:03:00]} 7. dxe5 {[%clk 0:02:59]}  Ng4 {[%clk 0:03:00]} 8. Qc1 {[%clk 0:02:44]}  Nxe5 {[%clk 0:02:59]} 9. Nxe5 {[%clk 0:02:44]}  dxe5 {[%clk 0:02:59]} 10. Bg2 {[%clk 0:02:43]}  Nc6 {[%clk 0:02:59]} 11. b5 {[%clk 0:02:40]}  Nd4 {[%clk 0:02:59]} 12. Nc3 {[%clk 0:02:24]}  Be6 {[%clk 0:02:50]} 13. e3 {[%clk 0:02:23]}  Bxc4 {[%clk 0:02:29]} 14. exd4 {[%clk 0:02:23]}  exd4 {[%clk 0:02:29]} 15. Ne4 {[%clk 0:02:23]}  Bxb5 {[%clk 0:02:29]} 16. Qc5 {[%clk 0:02:23]}  Ba6 {[%clk 0:02:24]} 17. O-O-O {[%clk 0:02:21]}  b6 {[%clk 0:02:10]} 18. Qxd4 {[%clk 0:02:11]}  Bxd4 {[%clk 0:02:09]} 19. Rxd4 {[%clk 0:02:11]}  Qe7 {[%clk 0:01:37]} 20. Rd7 {[%clk 0:02:11]}  Qe6 {[%clk 0:01:36]} 21. Nf6+ {[%clk 0:02:06]}  Kg7 {[%clk 0:01:34]} 22. Ng4+ {[%clk 0:01:44]}  Kg8 {[%clk 0:01:23]} 23. Nh6# {[%clk 0:01:44]} 1-0


[Site "https://www.chess.com"]